bitfinex-derivatives/quotes_ETHF0:USTF0_20251001
["timestamp","ask_amount","ask_price","bid_price","bid_amount"]
[1759362647493,1.17823,4342.2,4342.1,3.9929]
[1759362648187,0.84023,4342.2,4342.1,4.2143]
[1759362648491,0.62693,4342.2,4342.1,4.2143]
[1759362651594,3.2078,4342.8,4342.1,9.2143]
[1759362651791,3.5458,4344.1,4343.3,0.7715]
[1759362651990,0.41421,4343.5,4343.3,1.0065]
[1759362652990,3.9737929,4343.4,4343.3,1.0065]
[1759362653291,0.7659929,4343.4,4343.3,1.0065]
[1759362653694,3.9737929,4343.4,4343.3,1.0065]
[1759362653894,3.6357929,4343.4,4343.3,1.0065]
[1759362656496,0.4279929,4343.4,4343.3,1.0065]
[1759362656893,0.7546929,4343.4,4343.3,1.0065]
[1759362661306,3.9624929,4343.4,4343.3,0.7851]
[1759362661804,3.6357929,4343.4,4343.3,1.004]
[1759362663205,3.2098929,4343.4,4343.3,1.004]
[1759362665100,0.0020929,4343.4,4343.3,1.004]
[1759362665303,0.0020929,4343.4,4343.3,1.81816498]
[1759362665706,0.0020929,4343.4,4343.3,1.004]
[1759362666108,0.2267929,4343.4,4343.3,1.004]
[1759362666300,0.2267929,4343.4,4343.3,1.81960106]
[1759362666501,0.4350929,4343.4,4343.3,1.81960106]
[1759362667407,0.7617929,4343.4,4343.3,1.81960106]
[1759362667609,0.7617929,4343.4,4343.3,1.004]
[1759362667610,0.4350929,4343.4,4343.3,1.004]
[1759362668809,0.7617929,4343.4,4343.3,1.004]
[1759362669009,0.7617929,4343.4,4343.3,0.7851]
[1759362670611,0.7617929,4343.4,4343.3,1.004]
[1759362670812,0.4350929,4343.4,4343.3,1.004]
[1759362672513,0.0020929,4343.4,4343.3,1.81960106]
[1759362675818,0.0020929,4343.4,4343.3,2.46640934]
[1759362676019,0.0020929,4343.4,4343.3,1.65080828]
[1759362678823,0.2267929,4343.4,4343.3,1.65080828]
[1759362679018,0.2267929,4343.4,4343.3,1.004]
[1759362679213,0.2267929,4343.4,4343.3,2.22524748]
[1759362679527,0.0020929,4343.4,4343.3,2.22524748]
[1759362680223,0.0020929,4343.4,4343.3,1.004]
[1759362684919,0.41418,4343.8,4343.3,1.004]
[1759362685122,0.41418,4343.8,4343.7,1.99430539]
[1759362685430,0.41418,4343.8,4343.7,1.0002]
[1759362686017,0.41709991,4343.8,4343.7,1.0002]
[1759362686523,0.41709991,4343.8,4343.7,2.22803945]
[1759362687826,0.62279991,4343.8,4343.7,2.22803945]
[1759362688326,0.41709991,4343.8,4343.7,2.22803945]
[1759362692829,0.62279991,4343.8,4343.7,2.22803945]
[1759362693430,0.41709991,4343.8,4343.7,2.22803945]
[1759362697031,0.41709991,4343.8,4343.7,1.99403945]
[1759362697230,0.41709991,4343.8,4343.7,2.22703945]
[1759362698136,0.00291991,4343.8,4343.7,5.9992]
[1759362698332,3.2078,4344.4,4344.3,0.7662]
[1759362698637,0.179,4344.6,4344.5,0.8978]
[1759362698832,0.3847,4344.6,4344.5,1.1318]
[1759362699335,0.18078666,4344.6,4344.5,2.35731781]
[1759362699737,0.38648666,4344.6,4344.5,1.1318]
[1759362699929,1.69950991,4344.6,4344.5,0.3306]
[1759362700131,1.69950991,4344.6,4344.5,0.5646]
[1759362700341,6.69950991,4344.6,4344.5,1e-05]
[1759362700536,1.69950991,4344.6,4344.5,1e-05]
[1759362701237,5.60188666,4344.6,4344.5,1e-05]
[1759362701636,0.60188666,4344.6,4344.5,0.89781]
[1759362702536,1.69950991,4344.6,4344.5,0.33061]
[1759362703738,6.36300991,4344.6,4344.5,1e-05]
[1759362706037,6.36300991,4344.6,4344.3,0.3306]
[1759362706038,0.41412,4344.4,4344.1,0.8172174]
[1759362706237,3.6289,4344.4,4344.3,0.234]
[1759362706439,3.9654,4344.4,4344.3,0.234]
[1759362707142,1.17175,4344.1,4343.9,0.8172174]
[1759362707438,0.7576,4344.0,4343.9,0.234]
[1759362708040,0.7576,4344.0,4343.9,0.5646]
[1759362708237,1.56776261,4343.9,4343.8,1.0512174]
[1759362708438,1.56776261,4343.9,4343.8,0.234]
[1759362709138,1.17177,4343.9,4343.8,0.234]
[1759362709339,0.91959261,4343.8,4343.7,1.2645174]
[1759362710246,0.7576,4343.8,4343.7,1.10252479]
[1759362710445,0.3365,4344.3,4343.8,0.3306]
[1759362710642,1.15958,4344.5,4343.9,0.7662]
[1759362710643,0.62956,4344.0,4343.9,0.7662]
[1759362710838,0.18078666,4344.6,4344.2,0.7662]
[1759362710839,0.5422,4344.3,4344.2,0.7662]
[1759362711046,0.61983,4344.3,4344.2,1.0002]
[1759362711453,1.17173,4344.3,4344.2,1.0002]
[1759362711653,1.17173,4344.3,4344.2,0.234]
[1759362716160,1.17173,4344.3,4344.2,0.9676]
[1759362716462,0.41413,4344.3,4344.2,0.9676]
[1759362716654,1.15923,4344.3,4344.2,0.9676]
[1759362717362,1.15923,4344.3,4344.2,0.4473]
[1759362717660,1.15923,4344.3,4344.2,0.234]
[1759362718354,1.15923,4344.3,4344.2,0.4573]
[1759362718549,1.15923,4344.3,4344.2,0.7657]
[1759362719854,1.92035325,4344.3,4344.2,0.234]
[1759362721960,1.92035325,4344.3,4344.2,0.4573]
[1759362722758,1.92035325,4344.3,4344.2,0.7657]
[1759362722961,0.63913,4344.3,4344.2,0.9776]
[1759362723163,0.41413,4344.3,4344.2,0.9776]
[1759362724058,0.94923,4344.3,4344.2,0.9776]
[1759362724460,1.15923,4344.3,4344.2,0.9776]
[1759362725859,0.59489666,4344.6,4344.5,0.1322]
[1759362726161,3.2078,4345.9,4345.8,0.7436]
[1759362726356,0.04353036,4346.0,4345.8,5.92006339]
[1759362726661,0.1332,4348.0,4346.2,10.34868]
[1759362726962,0.1332,4348.0,4347.7,1.22118452]
[1759362727158,0.13606994,4348.0,4347.8,0.59090427]
[1759362727357,0.57106994,4348.0,4347.9,0.35290427]
[1759362727559,0.13606994,4348.0,4347.9,0.35290427]
[1759362727863,0.70426994,4348.0,4347.9,0.35290427]
[1759362728162,5.70426994,4348.0,4347.9,8.32e-06]
[1759362728360,0.70426994,4348.0,4347.9,8.32e-06]
[1759362728556,6.70639319,4348.0,4347.9,8.32e-06]
[1759362728757,0.1332,4346.5,4346.1,0.241]
[1759362728957,0.1332,4347.5,4346.4,3.96892325]
[1759362729257,0.1332,4347.5,4347.3,1.17496325]
[1759362729458,0.13606994,4348.0,4347.9,1.17490325]
[1759362729667,0.13606994,4348.0,4347.9,4.21440441]
[1759362730261,0.13936588,4349.0,4347.9,44.35128116]
[1759362730561,0.41369,4348.9,4348.6,3.2078]
[1759362730764,0.1332,4348.8,4348.7,0.244]
[1759362730960,0.13936588,4349.0,4348.8,0.76112325]
[1759362731156,0.55305588,4349.0,4348.7,0.244]
[1759362731463,0.1332,4348.8,4348.7,0.244]
[1759362732864,0.1332,4348.8,4348.7,0.14798359]
[1759362733171,0.1332,4348.0,4347.9,36.14448116]
[1759362733363,0.2664,4348.0,4347.9,0.24648116]
[1759362734059,0.2664,4348.0,4347.9,0.16589386]
[1759362734267,0.1332,4347.5,4347.4,0.244]
[1759362734466,0.2664,4347.5,4347.4,0.244]
[1759362734969,0.2664,4347.5,4347.4,0.2456463]
[1759362735564,0.68022,4347.5,4347.4,0.0016463]
[1759362735767,0.68022,4347.5,4347.4,0.31608363]
[1759362736067,0.1332,4347.5,4347.4,0.31608363]
[1759362737272,0.54702,4347.5,4347.4,0.31608363]
[1759362737464,0.68022,4347.5,4347.4,0.31608363]
[1759362738968,5.68022,4347.5,4347.4,0.31608363]
[1759362739167,0.4139,4346.8,4346.5,35.89]
[1759362739367,0.1332,4347.0,4346.4,3.2078]
[1759362739368,0.54712,4346.5,4346.4,3.2078]
[1759362739566,0.68032,4346.5,4346.4,3.2078]
[1759362739771,0.41399,4345.8,4345.7,0.244]
[1759362740065,0.54923723,4345.8,4345.7,0.24615652]
[1759362740572,0.1332,4345.0,4344.9,3.2078]
[1759362740764,0.1332,4345.0,4344.9,3.83311215]
[1759362741165,0.2664,4345.0,4344.9,3.83311215]
[1759362741468,0.2664,4345.0,4344.9,3.8350925]
[1759362741662,0.1332,4345.0,4344.9,3.83508566]
[1759362743570,0.5748,4345.0,4344.9,3.83508566]
[1759362743764,0.56089,4345.0,4344.9,3.20978035]
[1759362743967,0.56089,4345.0,4343.7,1.62834736]
[1759362743968,0.3084,4343.9,4343.8,0.8074683]
[1759362744167,0.3084,4343.9,4343.2,0.8074683]
[1759362744364,0.136,4344.0,4342.9,3.23082635]
[1759362744365,0.4444,4343.0,4342.9,3.23082635]
[1759362744563,0.5776,4343.0,4342.9,3.23082635]
[1759362745068,0.5776,4343.0,4342.9,3.23284529]
[1759362745267,5.5776,4343.0,4342.9,3.23284529]
[1759362747265,0.72271,4342.4,4342.3,0.245]
[1759362747562,0.4416,4342.4,4342.3,0.245]
[1759362747765,0.3084,4342.4,4342.3,0.245]
[1759362748372,0.3110631,4342.4,4342.3,0.2477631]
[1759362748572,0.7253731,4342.4,4342.3,0.2477631]
[1759362749673,0.3110631,4342.4,4342.3,0.2477631]
[1759362751172,0.3110631,4342.4,4342.3,0.55957778]
[1759362756071,0.3110631,4342.4,4342.3,2.85910266]
[1759362756377,0.12805572,4342.4,4342.3,7.85910266]
[1759362757073,0.12805572,4342.4,4342.3,2.85910266]
[1759362760478,0.12805572,4342.4,4342.3,3.47990234]
[1759362760778,0.12805572,4342.4,4342.3,2.85863217]
[1759362760975,0.12805572,4342.4,4342.3,3.47990177]
[1759362761376,0.35385572,4342.4,4342.3,3.48043213]
[1759362762069,0.12805572,4342.4,4342.3,3.48043213]
[1759362764083,0.97776572,4342.4,4342.3,1.18090725]
[1759362764284,0.56345572,4342.4,4342.3,1.18090725]
[1759362765880,0.56345572,4342.4,4342.3,1.98837555]
[1759362766084,0.35385572,4342.4,4342.3,1.98837555]
[1759362766285,0.35385572,4342.4,4342.3,1.18090725]
[1759362766583,0.12805572,4342.4,4342.3,1.18090725]
[1759362768072,0.56345572,4342.4,4342.3,1.18090725]
[1759362768281,0.3735877,4342.4,4342.3,1.18090725]
[1759362768881,0.3735877,4342.4,4342.3,0.86956306]
[1759362769282,0.37553236,4342.4,4342.3,0.86956306]
[1759362770083,0.00194466,4342.4,4342.3,0.86956306]
[1759362770384,0.31034466,4342.4,4342.3,0.86956306]
[1759362770582,0.53614466,4342.4,4342.3,0.86956306]
[1759362770779,0.74574466,4342.4,4342.3,0.62456306]
[1759362770980,0.74574466,4342.4,4342.3,0.86756306]
[1759362773485,0.1332,4342.4,4342.3,2.90285851]
[1759362773684,0.4523,4342.4,4342.3,0.86756306]
[1759362774489,0.45411934,4342.4,4342.3,2.90285851]
[1759362775493,0.76741934,4342.4,4342.3,2.90285851]
[1759362776095,0.31511934,4342.4,4342.3,0.86756306]
[1759362776792,0.53651934,4342.4,4342.3,0.86756306]
[1759362778090,0.76301934,4342.4,4342.3,0.86756306]
[1759362778493,0.76301934,4342.4,4342.3,1.28188306]
[1759362779087,0.53651934,4342.4,4342.3,1.28188306]
[1759362780195,0.76301934,4342.4,4342.3,0.86756306]
[1759362780598,0.31511934,4342.4,4342.3,5.86756306]
[1759362780897,0.3133,4342.4,4342.3,5.86756306]
[1759362781097,0.136,4343.0,4342.9,0.41426]
[1759362781400,0.5839,4343.0,4342.9,4.07159996]
[1759362781591,0.5839,4343.0,4342.9,5.49600682]
[1759362782098,0.58643812,4343.0,4342.9,5.49600682]
[1759362783087,0.89973812,4343.0,4342.9,5.49600682]
[1759362783498,1.03293812,4343.0,4342.9,3.4498]
[1759362786098,0.45183812,4343.0,4342.9,5.49600682]
[1759362786400,0.45183812,4343.0,4342.9,3.4498]
[1759362789293,0.89973812,4343.0,4342.9,3.2078]
[1759362789494,1.03293812,4343.0,4342.9,3.4498]
[1759362789898,0.89973812,4343.0,4342.9,5.49487333]
[1759362790091,1.03293812,4343.0,4342.9,5.49487333]
[1759362791001,1.03293812,4343.0,4342.9,3.4498]
[1759362797596,0.58503812,4343.0,4342.9,3.4498]
[1759362798002,0.80643812,4343.0,4342.9,3.4498]
[1759362798209,0.80643812,4343.0,4342.9,4.09648799]
[1759362798898,1.03293812,4343.0,4342.9,4.09648799]
[1759362804005,1.03293812,4343.0,4342.9,3.4498]
[1759362804212,1.03293812,4343.0,4342.9,4.84540062]
[1759362804515,1.03293812,4343.0,4342.9,3.4478]
[1759362804913,1.03293812,4343.0,4342.9,4.09448799]
[1759362805715,1.03293812,4343.0,4342.9,3.4478]
[1759362809917,6.67962611,4343.0,4342.9,3.2078]
[1759362810118,0.63581,4342.4,4342.3,0.0027631]
[1759362810411,1.28711,4342.4,4342.3,0.0027631]
[1759362810617,6.15391,4342.4,4342.3,0.0027631]
[1759362810914,1.15402,4341.2,4341.1,5.25287333]
[1759362811118,1.15402,4341.2,4341.1,0.24]
[1759362811912,1.15402,4341.2,4341.1,0.24288251]
[1759362812512,1.15402,4341.2,4341.1,0.00288251]
[1759362812722,1.15402,4341.2,4341.1,1.06111247]
[1759362813011,1.15402,4341.2,4341.1,0.24288251]
[1759362814321,0.3084,4341.2,4341.1,0.24288251]
[1759362814620,0.3084,4341.2,4341.1,5.24288251]
[1759362815221,0.3084,4341.2,4341.1,8.45068251]
[1759362815914,0.3084,4341.2,4341.1,49.25068251]
[1759362819416,0.3084,4341.2,4341.1,44.25068251]
[1759362826014,0.7396,4341.2,4341.1,3.45068251]
[1759362826225,5.7396,4341.2,4341.1,3.45068251]
[1759362826925,5.7396,4341.2,4341.1,0.24288251]
[1759362827121,5.7396,4341.2,4341.1,0.00288251]
[1759362827425,5.7396,4341.2,4341.1,0.24188251]
[1759362827726,5.7396,4341.2,4341.1,0.15767767]
[1759362828321,0.7396,4341.2,4341.1,0.15767767]
[1759362828717,0.7396,4341.2,4341.1,0.16022517]
[1759362830334,0.41447,4340.7,4340.6,0.61194203]
[1759362830629,1.28727,4340.7,4340.6,0.239]
[1759362830821,1.15407,4340.7,4340.6,0.85122408]
[1759362831221,1.15407,4340.7,4340.6,0.24194382]
[1759362832024,1.15407,4340.7,4340.6,0.85421229]
[1759362832638,1.15407,4340.7,4340.6,0.24194382]
[1759362836326,1.15407,4340.7,4340.6,1.05766457]
[1759362837831,0.99009,4340.5,4340.4,0.20106804]
[1759362838030,0.41462,4339.1,4339.0,3.2078]
[1759362838224,0.97822,4339.1,4339.0,3.4468]
[1759362838623,1.29292,4339.1,4339.0,3.4468]
[1759362838828,1.2945772,4339.1,4339.0,3.669601]
[1759362839327,1.2945772,4339.1,4339.0,4.224301]
[1759362839634,0.9798772,4339.1,4339.0,4.353801]
[1759362840033,1.2945772,4339.1,4339.0,4.353801]
[1759362840929,1.2945772,4339.1,4339.0,3.449601]
[1759362842632,6.2945772,4339.1,4339.0,0.241801]
[1759362843537,6.2945772,4339.1,4339.0,0.461801]
[1759362843737,1.2945772,4339.1,4339.0,0.461801]
[1759362843928,0.9798772,4339.1,4339.0,1.146001]
[1759362844339,1.2945772,4339.1,4339.0,1.146001]
[1759362847042,1.2945772,4339.1,4339.0,1.016501]
[1759362848343,0.4162772,4339.1,4339.0,1.146001]
[1759362851043,1.2945772,4339.1,4339.0,0.241801]
[1759362851447,6.2945772,4339.1,4339.0,0.241801]
[1759362851635,6.2945772,4339.1,4339.0,1e-06]
[1759362853048,6.5325772,4339.1,4339.0,1e-06]
[1759362854946,0.97283,4338.0,4337.9,0.02305289]
[1759362855246,1.420729,4338.0,4337.9,0.02305289]
[1759362855745,1.005999,4338.0,4337.9,0.24305289]
[1759362855942,0.878299,4338.0,4337.9,0.80065443]
[1759362856949,0.7451,4338.4,4338.3,0.4354]
[1759362857244,0.7451,4338.4,4338.3,0.7747]
[1759362860741,3.2078,4338.6,4338.5,0.5473]
[1759362860945,3.2078,4338.6,4338.5,0.8882]
[1759362861145,3.4218,4338.6,4338.5,0.8882]
[1759362862348,3.98,4338.6,4338.5,0.7571]
[1759362863351,3.98,4338.6,4338.5,0.8882]
[1759362863352,3.2078,4338.6,4338.5,0.8882]
[1759362863655,0.7738572,4339.1,4339.0,0.7571]
[1759362864053,0.9070562,4339.1,4339.0,0.7571]
[1759362864249,0.2148572,4339.1,4339.0,0.8874]
[1759362864955,0.0016572,4339.1,4339.0,0.8874]
[1759362867256,0.0016572,4339.1,4339.0,2.11089386]
[1759362875366,0.0016572,4339.1,4339.0,0.8874]
[1759362878669,0.2132,4339.9,4339.8,1.18076]
[1759362878869,0.2132,4339.9,4339.8,1.41776]
[1759362879665,0.21486404,4339.9,4339.8,1.41776]
[1759362880170,0.52726404,4339.9,4339.8,1.41776]
[1759362882178,0.21486404,4339.9,4339.8,1.41776]
[1759362882477,0.00166404,4339.9,4339.8,2.06577025]
[1759362882875,0.00166404,4339.9,4339.8,2.88388664]
[1759362886681,0.00166404,4339.9,4339.8,2.06577025]
[1759362887878,1.38557429,4339.9,4339.8,1.36851398]
[1759362888080,1.38557429,4339.9,4339.8,0.7863]
[1759362888279,1.38557429,4339.9,4339.8,1.0022]
[1759362889084,0.73756404,4339.9,4339.8,1.0022]
[1759362889385,0.73756404,4339.9,4339.8,1.82041398]
[1759362890774,0.00166404,4339.9,4339.8,2.46842423]
[1759362891382,0.00166404,4339.9,4339.8,1.65021025]
[1759362891779,0.42516404,4339.9,4339.8,1.41421025]
[1759362891986,0.73756404,4339.9,4339.8,0.7863]
[1759362893089,0.73756404,4339.9,4339.8,1.0022]
[1759362893284,0.21486404,4339.9,4339.8,1.0022]
[1759362894200,0.22326404,4339.9,4339.8,1.0022]
[1759362894386,0.00166404,4339.9,4339.8,2.22937459]
[1759362894889,0.22326404,4339.9,4339.8,2.22937459]
[1759362895187,0.00166404,4339.9,4339.8,2.22937459]
[1759362895691,0.00166404,4339.9,4339.8,1.65021025]
[1759362898884,0.00166404,4339.9,4339.8,1.0022]
[1759362899082,0.22326404,4339.9,4339.8,1.0022]
[1759362900984,0.00166404,4339.9,4339.8,1.0022]
[1759362902293,0.00166404,4339.9,4339.8,1.65021025]
[1759362904893,0.53846404,4339.9,4339.8,1.65021025]
[1759362905189,0.53846404,4339.9,4339.8,1.0022]
[1759362905386,0.00166404,4339.9,4339.8,1.0022]
[1759362905884,0.22326404,4339.9,4339.8,1.0022]
[1759362907090,0.00166404,4339.9,4339.8,1.0022]
[1759362909096,0.53846404,4339.9,4339.8,1.0022]
[1759362909397,0.22326404,4339.9,4339.8,1.0022]
[1759362911997,0.75006404,4339.9,4339.8,1.0022]
[1759362918291,0.00166404,4339.9,4339.8,1.0022]
[1759362919202,0.41621404,4339.9,4339.8,1.0022]
[1759362920897,0.00166404,4339.9,4339.8,1.0022]
[1759362921092,0.22556404,4339.9,4339.8,1.0022]
[1759362922604,0.22556404,4339.9,4339.8,4.21]
[1759362923302,0.00166404,4339.9,4339.8,4.21]
[1759362925101,0.41447,4340.8,4340.7,0.7514]
[1759362925301,0.547669,4340.8,4340.7,0.9874]
[1759362925502,0.133199,4340.8,4340.7,0.9874]
[1759362925703,0.41443,4341.1,4341.0,0.8817]
[1759362925899,0.41443,4341.1,4341.0,1.1177]
[1759362926100,0.00237873,4341.1,4341.0,1.11986125]
[1759362926302,3.2078,4341.7,4341.6,0.7514]
[1759362926506,0.63604,4342.1,4342.0,0.5717]
[1759362926707,1.18684,4342.1,4342.0,1.7322316]
[1759362926903,1.320039,4342.1,4342.0,1.7322316]
[1759362927101,0.905699,4342.1,4342.0,1.7322316]
[1759362927302,0.56973061,4342.1,4342.0,1.1177]
[1759362927498,0.35693061,4342.1,4342.0,2.3794286]
[1759362927699,3.2078,4342.7,4342.6,0.7514]
[1759362927997,3.9803,4342.7,4342.6,1.60087771]
[1759362928203,3.9803,4342.7,4342.6,1.38037771]
[1759362928404,3.9803,4342.7,4342.6,0.9874]
[1759362928709,3.98307592,4342.7,4342.6,0.7669]
[1759362929208,3.98307592,4342.7,4342.6,0.4569]
[1759362929402,0.77527592,4342.7,4342.6,0.4569]
[1759362929611,3.98307592,4342.7,4342.6,0.236]
[1759362929903,4.63108617,4342.7,4342.6,0.236]
[1759362930111,3.98307592,4342.7,4342.6,0.9874]
[1759362930799,4.63108617,4342.7,4342.6,0.9874]
[1759362931108,4.63108617,4342.7,4342.6,0.236]
[1759362931410,0.4345,4342.1,4342.0,0.61347771]
[1759362931612,0.4345,4342.1,4341.8,3.82127771]
[1759362931613,0.41436,4341.9,4341.8,3.82127771]
[1759362931807,1.320059,4341.9,4341.8,3.9747]
[1759362932113,1.83487025,4341.9,4341.8,0.236]
[1759362932307,1.18686,4341.9,4341.8,0.236]
[1759362933210,1.18686,4341.9,4341.8,0.7669]
[1759362933512,1.18686,4341.9,4341.8,0.9874]
[1759362934511,1.0358,4342.4,4341.8,0.9874]
[1759362934512,0.63599,4342.6,4342.5,0.8817]
[1759362934809,0.769189,4342.6,4342.5,1.1177]
[1759362935203,1.319989,4342.6,4342.5,1.1177]
[1759362935404,4.527789,4342.6,4342.5,1.1177]
[1759362935711,4.527789,4342.6,4342.5,0.9874]
[1759362936113,4.527789,4342.6,4342.5,0.236]
[1759362936613,4.527789,4342.6,4342.5,1e-05]
[1759362936808,4.527789,4342.6,4342.5,0.22091]
[1759362937002,4.527789,4342.6,4342.5,0.75141]
[1759362938915,4.527789,4342.6,4342.5,1e-05]
[1759362939119,1.18684,4342.1,4342.0,0.5309]
[1759362939310,1.320039,4342.1,4342.0,0.7669]
[1759362939504,1.18684,4342.1,4342.0,0.7669]
[1759362940215,1.18684,4342.1,4342.0,0.9874]
[1759362940814,0.41434,4342.1,4342.0,1.1177]
[1759362941317,3.2078,4342.6,4342.0,1.1177]
[1759362941318,0.41433,4342.2,4342.1,0.7514]
[1759362941511,0.41433,4342.2,4342.1,1.51332273]
[1759362942407,0.41431,4342.4,4342.1,1.51332273]
[1759362942717,0.00277592,4342.7,4342.6,1.16569]
[1759362942912,0.00277592,4342.7,4342.6,1.40169]
[1759362943114,0.00277592,4342.7,4342.6,2.77377469]
[1759362943613,0.00277592,4342.7,4342.6,2.35948469]
[1759362944319,0.00277592,4342.7,4342.6,1.74932273]
[1759362944617,0.00277592,4342.7,4342.6,42.96361273]
[1759362946120,0.00277592,4342.7,4342.6,41.7874]
[1759362947721,0.00277592,4342.7,4342.6,42.54932273]
[1759362948424,0.00277592,4342.7,4342.6,43.15948469]
[1759362949622,0.00277592,4342.7,4342.6,42.54932273]
[1759362949821,0.00277592,4342.7,4342.6,43.15952088]
[1759362950420,0.00277592,4342.7,4342.6,42.39759815]
[1759362950925,0.00277592,4342.7,4342.6,41.7874]
[1759362952422,0.00277592,4342.7,4342.6,42.60537028]
[1759362953321,3.2078,4343.8,4343.5,0.1303]
[1759362953527,0.63585,4344.1,4344.0,0.8817]
[1759362953728,0.63585,4344.1,4344.0,1.1177]
[1759362953921,0.95295,4344.1,4344.0,1.1177]
[1759362954121,1.291149,4344.1,4344.0,1.1177]
[1759362954316,1.2928821,4344.1,4344.0,1.1177]
[1759362954825,1.2928821,4344.1,4344.0,0.7669]
[1759362955523,1.2928821,4344.1,4344.0,0.4569]
[1759362955726,1.2928821,4344.1,4344.0,0.236]
[1759362955929,1.2928821,4344.1,4344.0,0.7618]
[1759362956442,1.2928821,4344.1,4344.0,0.984]
[1759362956723,0.9757821,4344.1,4344.0,1.1139]
[1759362957023,0.0017331,4344.1,4344.0,1.1139]
[1759362957230,0.0017331,4344.1,4344.0,1.72518246]
[1759362957424,3.2078,4344.8,4344.0,1.1139]
[1759362957727,0.3171,4345.1,4344.7,0.4302]
[1759362957928,0.3171,4345.1,4344.6,0.61135437]
[1759362957929,1.15485,4345.1,4345.0,0.748]
[1759362958122,0.7408,4345.1,4345.0,0.984]
[1759362958316,0.873999,4345.1,4345.0,0.984]
[1759362958522,0.87645932,4345.1,4345.0,1.11654783]
[1759362958829,0.87645932,4345.1,4345.0,0.98664783]
[1759362960329,0.87645932,4345.1,4345.0,0.23864783]
[1759362961026,1.15492,4344.4,4344.3,0.81935437]
[1759362961322,0.547309,4344.5,4344.4,0.748]
[1759362962132,0.133199,4344.5,4344.4,0.7505407]
[1759362962428,0.5358,4345.0,4344.9,0.748]
[1759362962622,0.5358,4345.0,4344.9,0.984]
[1759362962822,0.668999,4345.0,4344.9,0.984]
[1759362963025,0.873999,4345.0,4344.9,0.984]
[1759362966232,3.84049,4345.8,4345.7,0.748]
[1759362966435,3.559699,4345.8,4345.7,0.984]
[1759362966632,3.2078,4345.8,4345.7,0.984]
[1759362966927,0.3171,4346.3,4346.1,0.748]
[1759362966928,1.15475,4346.2,4346.1,0.748]
[1759362967133,1.15475,4346.2,4346.1,0.7618]
[1759362967333,1.15685773,4346.2,4346.1,0.984]
[1759362968734,0.00210773,4346.2,4346.1,0.984]
[1759362969333,0.22080773,4346.2,4346.1,0.984]
[1759362969931,0.74290773,4346.2,4346.1,0.984]
[1759362970131,1.15685773,4346.2,4346.1,0.984]
[1759362970740,1.15478,4345.9,4345.8,0.5258]
[1759362971036,0.41397,4346.0,4345.9,0.748]
[1759362971337,0.63267,4346.0,4345.9,0.748]
[1759362971533,0.765869,4346.0,4345.9,0.748]
[1759362971738,1.287969,4346.0,4345.9,0.748]
[1759362972535,1.417469,4346.0,4345.9,0.208]
[1759362973441,1.417469,4346.0,4345.9,0.5258]
[1759362973641,1.417469,4346.0,4345.8,0.236]
[1759362973840,0.873999,4345.9,4345.8,0.984]
[1759362974242,0.7408,4345.9,4345.8,0.984]
[1759362976241,0.4237,4345.9,4345.8,0.984]
[1759362976442,0.63475773,4346.2,4346.1,0.748]
[1759362976741,1.15685773,4346.2,4346.1,0.7618]
[1759362977139,1.15685773,4346.2,4346.1,0.236]
[1759362977340,1.15685773,4346.2,4346.1,0.984]
[1759362977837,0.74290773,4346.2,4346.1,0.984]
[1759362978040,0.74290773,4346.2,4346.1,0.444]
[1759362978041,1.15685773,4346.2,4346.1,0.444]
[1759362978348,1.15685773,4346.2,4346.1,0.984]
[1759362978349,0.74290773,4346.2,4346.1,0.984]
[1759362978544,0.00210773,4346.2,4346.1,0.984]
[1759362978841,0.00210773,4346.2,4346.1,6.39795]
[1759362979143,0.00210773,4346.2,4346.1,5.984]
[1759362979343,0.00210773,4346.2,4346.1,0.748]
[1759362979534,0.5221,4347.0,4346.5,0.1299]
[1759362979842,0.41392,4346.5,4346.4,3.2078]
[1759362980033,0.83761,4346.6,4346.5,0.4302]
[1759362980233,0.2187,4345.9,4345.8,0.81826347]
[1759362980439,0.74356894,4345.9,4345.8,0.7618]
[1759362980745,0.00276894,4345.9,4345.8,1.74430126]
[1759362981337,0.00276894,4345.9,4345.8,2.35456473]
[1759362981546,0.00276894,4345.9,4345.8,1.59426347]
[1759362982146,0.44286894,4345.9,4345.8,1.59426347]
[1759362982342,0.00276894,4345.9,4345.8,1.59426347]
[1759362982540,0.00276894,4345.9,4345.8,0.984]
[1759362983543,0.00276894,4345.9,4345.8,5.984]
[1759362984138,0.00276894,4345.9,4345.8,46.784]
[1759362984349,0.00276894,4345.9,4345.8,41.548]
[1759362984350,0.31276894,4345.9,4345.8,41.548]
[1759362984550,0.31276894,4345.9,4345.8,41.784]
[1759362985044,0.73576894,4345.9,4345.8,0.984]
[1759362985251,0.83698,4345.8,4345.7,0.61043045]
[1759362985446,1.14698,4345.8,4345.7,0.236]
[1759362985648,1.14698,4345.8,4345.7,0.4608]
[1759362985649,1.280179,4345.8,4345.7,0.4608]
[1759362985847,0.133199,4345.8,4345.7,1.62833045]
[1759362986043,0.866199,4345.8,4345.7,1.62833045]
[1759362986244,0.351299,4345.8,4345.7,1.62833045]
[1759362986458,0.351299,4345.8,4345.7,1.0179]
[1759362988543,0.866199,4345.8,4345.7,1.0179]
[1759362989749,0.866199,4345.8,4345.7,0.7954]
[1759362990354,0.41399,4345.7,4345.6,0.81504328]
[1759362990653,1.280189,4345.7,4345.6,0.236]
[1759362990852,1.14699,4345.7,4345.6,0.236]
[1759362991051,6.14699,4345.7,4345.6,0.236]
[1759362991255,0.423,4344.7,4344.6,1.59694328]
[1759362991463,0.733,4344.7,4344.6,1.03984328]
[1759362991752,0.5578,4344.5,4344.4,3.2103407]
[1759362991948,1.000999,4344.5,4344.4,3.4463407]
[1759362992347,1.000999,4344.5,4344.4,4.2282407]
[1759362992348,0.866199,4344.5,4344.4,4.2282407]
[1759362992751,1.000999,4344.5,4344.4,4.0057407]
[1759362992952,0.866199,4344.5,4344.4,4.0057407]
[1759362993152,0.866199,4344.5,4344.4,4.2282407]
[1759362993754,0.866199,4344.5,4344.4,1.0204407]
[1759362994155,1.000999,4344.5,4344.4,1.0204407]